[Event "Titled Tuesday Blitz August 22 Late 2023"]
[White "Sala, Giulia"]
[Black "Tologon tegin, Semetei"]
[WhiteFideId "2840451"]
[BlackFideId "13800574"]
[WhiteElo "2372"]
[BlackElo "2621"]
[Result "1-0"]
[Round "11"]
[TimeControl "180+1"]
[Date "2023.08.22"]
[WhiteClock "0:00:12"]
[BlackClock "0:00:01"]
[Board "29"]

1. e4 {[%clk 0:03:00]}  e5 {[%clk 0:02:53]} 2. Bc4 {[%clk 0:02:56]}  Nc6 {[%clk 0:02:52]} 3. Nc3 {[%clk 0:02:54]}  Nf6 {[%clk 0:02:52]} 4. d3 {[%clk 0:02:54]}  Na5 {[%clk 0:02:50]} 5. Bb3 {[%clk 0:02:52]}  Nxb3 {[%clk 0:02:50]} 6. axb3 {[%clk 0:02:53]}  Bc5 {[%clk 0:02:48]} 7. f4 {[%clk 0:02:51]}  d6 {[%clk 0:02:48]} 8. Nf3 {[%clk 0:02:51]}  Bg4 {[%clk 0:02:45]} 9. h3 {[%clk 0:02:42]}  Bxf3 {[%clk 0:02:45]} 10. Qxf3 {[%clk 0:02:42]}  h6 {[%clk 0:02:42]} 11. Na4 {[%clk 0:02:25]}  Bb6 {[%clk 0:02:17]} 12. Bd2 {[%clk 0:02:15]}  O-O {[%clk 0:01:46]} 13. Nxb6 {[%clk 0:02:14]}  axb6 {[%clk 0:01:45]} 14. O-O {[%clk 0:02:14]}  Rxa1 {[%clk 0:01:41]} 15. Rxa1 {[%clk 0:02:14]}  exf4 {[%clk 0:01:35]} 16. Bxf4 {[%clk 0:02:12]}  Nd7 {[%clk 0:01:35]} 17. Rf1 {[%clk 0:02:01]}  Qf6 {[%clk 0:01:33]} 18. c3 {[%clk 0:01:58]}  Qe6 {[%clk 0:01:28]} 19. Qg3 {[%clk 0:01:56]}  f5 {[%clk 0:01:25]} 20. exf5 {[%clk 0:01:42]}  Rxf5 {[%clk 0:01:26]} 21. Re1 {[%clk 0:01:43]}  Qxb3 {[%clk 0:01:18]} 22. Bxh6 {[%clk 0:01:03]}  Qf7 {[%clk 0:01:17]} 23. Bd2 {[%clk 0:00:59]}  b5 {[%clk 0:00:56]} 24. d4 {[%clk 0:00:54]}  Nb6 {[%clk 0:00:51]} 25. Bg5 {[%clk 0:00:45]}  Nd5 {[%clk 0:00:49]} 26. h4 {[%clk 0:00:42]}  Kh7 {[%clk 0:00:45]} 27. Qg4 {[%clk 0:00:40]}  c6 {[%clk 0:00:44]} 28. Bc1 {[%clk 0:00:31]}  b4 {[%clk 0:00:33]} 29. c4 {[%clk 0:00:29]}  Nb6 {[%clk 0:00:33]} 30. b3 {[%clk 0:00:29]}  d5 {[%clk 0:00:19]} 31. c5 {[%clk 0:00:27]}  Nd7 {[%clk 0:00:19]} 32. Bg5 {[%clk 0:00:27]}  Nf8 {[%clk 0:00:10]} 33. Re7 {[%clk 0:00:20]}  Rf1+ {[%clk 0:00:09]} 34. Kh2 {[%clk 0:00:20]}  Qg6 {[%clk 0:00:09]} 35. h5 {[%clk 0:00:18]}  Qb1 {[%clk 0:00:07]} 36. Bc1 {[%clk 0:00:15]}  Rh1+ {[%clk 0:00:06]} 37. Kxh1 {[%clk 0:00:14]}  Qxc1+ {[%clk 0:00:04]} 38. Kh2 {[%clk 0:00:14]}  Qh6 {[%clk 0:00:03]} 39. Qf5+ {[%clk 0:00:13]}  Kg8 {[%clk 0:00:03]} 40. Qf7+ {[%clk 0:00:11]}  Kh8 {[%clk 0:00:01]} 41. Qxf8+ {[%clk 0:00:12]} 1-0


[Site "https://www.chess.com"]

[Event "Titled Tuesday Blitz August 22 Late 2023"]
[White "Ibarra Jerez, Jose Carlos"]
[Black "Rosen, Eric"]
[WhiteFideId "2226332"]
[BlackFideId "2032562"]
[WhiteElo "2874"]
[BlackElo "2583"]
[Result "0-1"]
[Round "11"]
[TimeControl "180+1"]
[Date "2023.08.22"]
[WhiteClock "0:00:00"]
[BlackClock "0:00:53"]
[Board "30"]

1. b3 {[%clk 0:02:59]}  e5 {[%clk 0:02:59]} 2. Bb2 {[%clk 0:02:59]}  Nc6 {[%clk 0:03:00]} 3. e3 {[%clk 0:02:59]}  Nf6 {[%clk 0:03:00]} 4. Bb5 {[%clk 0:02:57]}  e4 {[%clk 0:03:01]} 5. Bxc6 {[%clk 0:02:55]}  dxc6 {[%clk 0:03:01]} 6. Ne2 {[%clk 0:02:56]}  Bd6 {[%clk 0:03:01]} 7. Ng3 {[%clk 0:02:56]}  Bg4 {[%clk 0:02:36]} 8. Qc1 {[%clk 0:02:45]}  h5 {[%clk 0:02:35]} 9. Bxf6 {[%clk 0:02:36]}  Qxf6 {[%clk 0:02:33]} 10. Nc3 {[%clk 0:02:37]}  Bxg3 {[%clk 0:02:28]} 11. hxg3 {[%clk 0:02:10]}  Qe5 {[%clk 0:02:28]} 12. b4 {[%clk 0:01:44]}  O-O-O {[%clk 0:02:21]} 13. a4 {[%clk 0:01:43]}  Rh6 {[%clk 0:02:11]} 14. Ra3 {[%clk 0:01:35]}  Rhd6 {[%clk 0:02:08]} 15. Nb1 {[%clk 0:01:35]}  Qf5 {[%clk 0:01:54]} 16. Rc3 {[%clk 0:01:13]}  Rf6 {[%clk 0:01:53]} 17. O-O {[%clk 0:01:03]}  h4 {[%clk 0:01:27]} 18. Rc5 {[%clk 0:01:03]}  Rd5 {[%clk 0:01:25]} 19. Rxd5 {[%clk 0:00:37]}  cxd5 {[%clk 0:01:23]} 20. Nc3 {[%clk 0:00:37]}  h3 {[%clk 0:01:08]} 21. f4 {[%clk 0:00:26]}  exf3 {[%clk 0:00:59]} 22. gxf3 {[%clk 0:00:23]}  h2+ {[%clk 0:00:53]} 23. Kxh2 {[%clk 0:00:23]}  Bxf3 {[%clk 0:00:53]} 24. Rxf3 {[%clk 0:00:00]}  Qxf3 {[%clk 0:00:53]} 0-1


[Site "https://www.chess.com"]

[Event "Titled Tuesday Blitz August 22 Late 2023"]
[White "angelgab3"]
[Black "Zierk, Steven"]
[BlackFideId "2034255"]
[WhiteElo "2576"]
[BlackElo "2847"]
[Result "0-1"]
[Round "11"]
[TimeControl "180+1"]
[Date "2023.08.22"]
[WhiteClock "0:00:41"]
[BlackClock "0:01:35"]
[Board "31"]

1. e4 {[%clk 0:03:00]}  e6 {[%clk 0:03:00]} 2. d4 {[%clk 0:03:00]}  d5 {[%clk 0:03:00]} 3. Nc3 {[%clk 0:03:01]}  Bb4 {[%clk 0:03:00]} 4. e5 {[%clk 0:03:01]}  c5 {[%clk 0:03:01]} 5. a3 {[%clk 0:03:02]}  Bxc3+ {[%clk 0:03:01]} 6. bxc3 {[%clk 0:03:03]}  Qa5 {[%clk 0:03:02]} 7. Bd2 {[%clk 0:03:03]}  Qa4 {[%clk 0:03:02]} 8. Qb1 {[%clk 0:03:03]}  c4 {[%clk 0:03:02]} 9. h4 {[%clk 0:02:56]}  Nc6 {[%clk 0:03:01]} 10. Ne2 {[%clk 0:02:57]}  Bd7 {[%clk 0:03:00]} 11. h5 {[%clk 0:02:57]}  h6 {[%clk 0:02:59]} 12. g4 {[%clk 0:02:53]}  O-O-O {[%clk 0:02:58]} 13. Be3 {[%clk 0:02:54]}  Nge7 {[%clk 0:02:45]} 14. Kd2 {[%clk 0:02:53]}  Rdf8 {[%clk 0:02:44]} 15. Bh3 {[%clk 0:02:52]}  f6 {[%clk 0:02:42]} 16. f4 {[%clk 0:02:52]}  Kb8 {[%clk 0:02:42]} 17. Rg1 {[%clk 0:02:45]}  Be8 {[%clk 0:02:36]} 18. Ng3 {[%clk 0:02:36]}  Rhg8 {[%clk 0:02:33]} 19. Qd1 {[%clk 0:02:24]}  Qa5 {[%clk 0:02:23]} 20. a4 {[%clk 0:02:15]}  Nc8 {[%clk 0:02:19]} 21. Qb1 {[%clk 0:02:14]}  fxe5 {[%clk 0:02:12]} 22. fxe5 {[%clk 0:02:13]}  Rf3 {[%clk 0:02:12]} 23. Qb5 {[%clk 0:01:59]}  Qd8 {[%clk 0:02:06]} 24. Rab1 {[%clk 0:01:49]}  b6 {[%clk 0:02:03]} 25. Qa6 {[%clk 0:01:22]}  Qh4 {[%clk 0:01:57]} 26. a5 {[%clk 0:01:23]}  Nxa5 {[%clk 0:01:36]} 27. Qxa5 {[%clk 0:01:20]}  Qxh3 {[%clk 0:01:36]} 28. Nf1 {[%clk 0:00:41]}  Rxf1 {[%clk 0:01:35]} 0-1


[Site "https://www.chess.com"]

[Event "Titled Tuesday Blitz August 22 Late 2023"]
[White "Przybylski, Wojciech"]
[Black "Klukin, Kirill"]
[WhiteFideId "1117599"]
[BlackFideId "24199273"]
[WhiteElo "2579"]
[BlackElo "2804"]
[Result "1-0"]
[Round "11"]
[TimeControl "180+1"]
[Date "2023.08.22"]
[WhiteClock "0:00:04"]
[BlackClock "0:00:01"]
[Board "32"]

1. d4 {[%clk 0:02:59]}  f5 {[%clk 0:02:57]} 2. g4 {[%clk 0:02:57]}  e6 {[%clk 0:02:51]} 3. Nc3 {[%clk 0:02:56]}  Nf6 {[%clk 0:02:49]} 4. g5 {[%clk 0:02:54]}  Ne4 {[%clk 0:02:48]} 5. h4 {[%clk 0:02:51]}  d5 {[%clk 0:02:47]} 6. Bf4 {[%clk 0:02:47]}  Bb4 {[%clk 0:02:44]} 7. Rh3 {[%clk 0:02:44]}  c5 {[%clk 0:02:39]} 8. a3 {[%clk 0:02:42]}  Bxc3+ {[%clk 0:02:34]} 9. bxc3 {[%clk 0:02:41]}  Qa5 {[%clk 0:02:35]} 10. Be5 {[%clk 0:02:36]}  Nc6 {[%clk 0:02:25]} 11. Bxg7 {[%clk 0:02:27]}  Rg8 {[%clk 0:02:22]} 12. Be5 {[%clk 0:02:23]}  Nxc3 {[%clk 0:02:10]} 13. Qd2 {[%clk 0:02:15]}  cxd4 {[%clk 0:01:31]} 14. Nf3 {[%clk 0:02:11]}  Nxe5 {[%clk 0:01:17]} 15. Nxd4 {[%clk 0:01:59]}  Nc4 {[%clk 0:01:10]} 16. Qxc3 {[%clk 0:01:57]}  Qxc3+ {[%clk 0:01:10]} 17. Rxc3 {[%clk 0:01:56]}  Bd7 {[%clk 0:01:04]} 18. f4 {[%clk 0:01:55]}  Ke7 {[%clk 0:01:00]} 19. e3 {[%clk 0:01:51]}  Nd6 {[%clk 0:01:00]} 20. Bd3 {[%clk 0:01:36]}  Rac8 {[%clk 0:01:00]} 21. Rxc8 {[%clk 0:01:33]}  Rxc8 {[%clk 0:01:01]} 22. Rb1 {[%clk 0:01:27]}  b6 {[%clk 0:01:01]} 23. h5 {[%clk 0:01:19]}  Be8 {[%clk 0:01:01]} 24. h6 {[%clk 0:01:18]}  Bg6 {[%clk 0:00:35]} 25. Kd2 {[%clk 0:01:17]}  Bh5 {[%clk 0:00:30]} 26. a4 {[%clk 0:01:15]}  Be8 {[%clk 0:00:28]} 27. Ra1 {[%clk 0:01:14]}  a5 {[%clk 0:00:21]} 28. Rb1 {[%clk 0:01:11]}  Rb8 {[%clk 0:00:20]} 29. Bb5 {[%clk 0:01:03]}  Bxb5 {[%clk 0:00:17]} 30. axb5 {[%clk 0:01:02]}  Ra8 {[%clk 0:00:15]} 31. Nc6+ {[%clk 0:01:00]}  Kf7 {[%clk 0:00:14]} 32. Ne5+ {[%clk 0:00:59]}  Ke7 {[%clk 0:00:14]} 33. Kd3 {[%clk 0:00:59]}  Nf7 {[%clk 0:00:14]} 34. Nc6+ {[%clk 0:00:55]}  Kd6 {[%clk 0:00:12]} 35. Ra1 {[%clk 0:00:54]}  Nh8 {[%clk 0:00:10]} 36. c4 {[%clk 0:00:52]}  Ng6 {[%clk 0:00:09]} 37. cxd5 {[%clk 0:00:51]}  exd5 {[%clk 0:00:10]} 38. Nd4 {[%clk 0:00:50]}  Ne7 {[%clk 0:00:10]} 39. Ra4 {[%clk 0:00:47]}  Rc8 {[%clk 0:00:10]} 40. Ra1 {[%clk 0:00:45]}  Rc5 {[%clk 0:00:08]} 41. Rg1 {[%clk 0:00:43]}  Rc8 {[%clk 0:00:08]} 42. Nf3 {[%clk 0:00:40]}  Ng6 {[%clk 0:00:08]} 43. Rb1 {[%clk 0:00:34]}  Rc4 {[%clk 0:00:07]} 44. Nd4 {[%clk 0:00:33]}  Ne7 {[%clk 0:00:07]} 45. Ra1 {[%clk 0:00:30]}  Rc8 {[%clk 0:00:06]} 46. Ra2 {[%clk 0:00:29]}  Rc7 {[%clk 0:00:05]} 47. Rg2 {[%clk 0:00:22]}  Rc8 {[%clk 0:00:04]} 48. Ne2 {[%clk 0:00:21]}  Ng6 {[%clk 0:00:04]} 49. Nc3 {[%clk 0:00:21]}  Ne7 {[%clk 0:00:02]} 50. Na4 {[%clk 0:00:20]}  Rb8 {[%clk 0:00:02]} 51. Rc2 {[%clk 0:00:20]}  Rb7 {[%clk 0:00:03]} 52. Kd4 {[%clk 0:00:19]}  Rb8 {[%clk 0:00:03]} 53. Rc3 {[%clk 0:00:19]}  Rb7 {[%clk 0:00:04]} 54. Rc1 {[%clk 0:00:19]}  Rb8 {[%clk 0:00:04]} 55. Nb2 {[%clk 0:00:19]}  Rb7 {[%clk 0:00:03]} 56. Nd3 {[%clk 0:00:19]}  Ng6 {[%clk 0:00:03]} 57. Rc6+ {[%clk 0:00:18]}  Kd7 {[%clk 0:00:03]} 58. Kxd5 {[%clk 0:00:18]}  Ne7+ {[%clk 0:00:04]} 59. Ke5 {[%clk 0:00:16]}  Nxc6+ {[%clk 0:00:04]} 60. bxc6+ {[%clk 0:00:16]}  Kxc6 {[%clk 0:00:05]} 61. Kxf5 {[%clk 0:00:16]}  a4 {[%clk 0:00:05]} 62. Ke6 {[%clk 0:00:14]}  Kb5 {[%clk 0:00:05]} 63. f5 {[%clk 0:00:13]}  a3 {[%clk 0:00:05]} 64. Nc1 {[%clk 0:00:13]}  Kc4 {[%clk 0:00:04]} 65. g6 {[%clk 0:00:12]}  b5 {[%clk 0:00:05]} 66. g7 {[%clk 0:00:11]}  Rb8 {[%clk 0:00:04]} 67. f6 {[%clk 0:00:11]}  b4 {[%clk 0:00:04]} 68. f7 {[%clk 0:00:11]}  Rb6+ {[%clk 0:00:05]} 69. Kf5 {[%clk 0:00:10]}  Rb5+ {[%clk 0:00:06]} 70. Kf4 {[%clk 0:00:09]}  b3 {[%clk 0:00:05]} 71. g8=Q {[%clk 0:00:08]}  Kc3 {[%clk 0:00:05]} 72. Qg7+ {[%clk 0:00:08]}  Kc2 {[%clk 0:00:05]} 73. f8=Q {[%clk 0:00:07]}  b2 {[%clk 0:00:05]} 74. Qc8+ {[%clk 0:00:06]}  Kb1 {[%clk 0:00:05]} 75. Nd3 {[%clk 0:00:06]}  Rb3 {[%clk 0:00:03]} 76. Qg1+ {[%clk 0:00:05]}  Ka2 {[%clk 0:00:04]} 77. Qc2 {[%clk 0:00:05]}  Rxd3 {[%clk 0:00:01]} 78. Qgb1# {[%clk 0:00:04]} 1-0


[Site "https://www.chess.com"]

[Event "Titled Tuesday Blitz August 22 Late 2023"]
[White "Kushko, Dmitriy"]
[Black "Shapiro, Viktor"]
[WhiteFideId "14162261"]
[BlackFideId "4175700"]
[WhiteElo "2755"]
[BlackElo "2557"]
[Result "0-1"]
[Round "11"]
[TimeControl "180+1"]
[Date "2023.08.22"]
[WhiteClock "0:00:00"]
[BlackClock "0:00:34"]
[Board "33"]

1. Nf3 {[%clk 0:03:00]}  Nf6 {[%clk 0:02:59]} 2. g3 {[%clk 0:03:01]}  d5 {[%clk 0:02:59]} 3. Bg2 {[%clk 0:03:01]}  Bg4 {[%clk 0:02:59]} 4. O-O {[%clk 0:03:00]}  c6 {[%clk 0:02:59]} 5. h3 {[%clk 0:03:01]}  Bh5 {[%clk 0:02:58]} 6. c4 {[%clk 0:02:59]}  Nbd7 {[%clk 0:02:52]} 7. cxd5 {[%clk 0:02:55]}  cxd5 {[%clk 0:02:52]} 8. d4 {[%clk 0:02:55]}  e6 {[%clk 0:02:52]} 9. Qb3 {[%clk 0:02:52]}  Qb6 {[%clk 0:02:48]} 10. Qxb6 {[%clk 0:02:52]}  Nxb6 {[%clk 0:02:45]} 11. Nc3 {[%clk 0:02:52]}  a6 {[%clk 0:02:43]} 12. Ne5 {[%clk 0:02:43]}  Bb4 {[%clk 0:02:40]} 13. g4 {[%clk 0:02:26]}  Bg6 {[%clk 0:02:40]} 14. g5 {[%clk 0:02:26]}  Nfd7 {[%clk 0:02:33]} 15. Nxg6 {[%clk 0:02:25]}  hxg6 {[%clk 0:02:33]} 16. e4 {[%clk 0:02:26]}  Bxc3 {[%clk 0:02:16]} 17. bxc3 {[%clk 0:02:25]}  dxe4 {[%clk 0:02:16]} 18. Bxe4 {[%clk 0:02:24]}  Rxh3 {[%clk 0:02:15]} 19. Bxb7 {[%clk 0:02:22]}  Ra7 {[%clk 0:02:15]} 20. Bg2 {[%clk 0:02:20]}  Rxc3 {[%clk 0:02:15]} 21. Rb1 {[%clk 0:02:10]}  Rac7 {[%clk 0:02:02]} 22. Re1 {[%clk 0:01:52]}  Kd8 {[%clk 0:01:52]} 23. Bd2 {[%clk 0:01:18]}  Ra3 {[%clk 0:01:43]} 24. Bb4 {[%clk 0:00:34]}  Rxa2 {[%clk 0:01:43]} 25. Ra1 {[%clk 0:00:34]}  Rcc2 {[%clk 0:01:38]} 26. Rxa2 {[%clk 0:00:30]}  Rxa2 {[%clk 0:01:37]} 27. Rc1 {[%clk 0:00:26]}  Nd5 {[%clk 0:01:12]} 28. Bd6 {[%clk 0:00:24]}  N7b6 {[%clk 0:01:07]} 29. Rb1 {[%clk 0:00:20]}  Kd7 {[%clk 0:01:05]} 30. Be5 {[%clk 0:00:20]}  f6 {[%clk 0:01:04]} 31. gxf6 {[%clk 0:00:20]}  gxf6 {[%clk 0:01:04]} 32. Bg3 {[%clk 0:00:19]}  a5 {[%clk 0:01:01]} 33. Bf1 {[%clk 0:00:14]}  a4 {[%clk 0:00:57]} 34. Bb5+ {[%clk 0:00:14]}  Ke7 {[%clk 0:00:57]} 35. Bc6 {[%clk 0:00:07]}  a3 {[%clk 0:00:54]} 36. Rb5 {[%clk 0:00:06]}  Rb2 {[%clk 0:00:52]} 37. Ra5 {[%clk 0:00:07]}  a2 {[%clk 0:00:52]} 38. Kg2 {[%clk 0:00:07]}  Nc3 {[%clk 0:00:48]} 39. Ra7+ {[%clk 0:00:07]}  Kd8 {[%clk 0:00:45]} 40. Bc7+ {[%clk 0:00:06]}  Kc8 {[%clk 0:00:46]} 41. Bd6 {[%clk 0:00:05]}  Nb5 {[%clk 0:00:36]} 42. Bb7+ {[%clk 0:00:00]}  Kd7 {[%clk 0:00:34]} 0-1


[Site "https://www.chess.com"]

[Event "Titled Tuesday Blitz August 22 Late 2023"]
[White "Leebit02"]
[Black "Matinian, Nikita"]
[BlackFideId "24129100"]
[WhiteElo "2556"]
[BlackElo "2711"]
[Result "0-1"]
[Round "11"]
[TimeControl "180+1"]
[Date "2023.08.22"]
[WhiteClock "0:00:07"]
[BlackClock "0:00:51"]
[Board "35"]

1. Nf3 {[%clk 0:02:55]}  Nf6 {[%clk 0:02:59]} 2. c4 {[%clk 0:02:51]}  e6 {[%clk 0:02:56]} 3. d4 {[%clk 0:02:46]}  d5 {[%clk 0:02:55]} 4. g3 {[%clk 0:02:46]}  Bb4+ {[%clk 0:02:54]} 5. Nc3 {[%clk 0:02:45]}  O-O {[%clk 0:02:54]} 6. Bg2 {[%clk 0:02:45]}  dxc4 {[%clk 0:02:54]} 7. O-O {[%clk 0:02:45]}  Nc6 {[%clk 0:02:54]} 8. Qa4 {[%clk 0:02:43]}  Bd7 {[%clk 0:02:50]} 9. Qc2 {[%clk 0:02:39]}  Rb8 {[%clk 0:02:39]} 10. e4 {[%clk 0:02:32]}  b5 {[%clk 0:02:31]} 11. Rd1 {[%clk 0:02:30]}  Be7 {[%clk 0:02:26]} 12. Ne5 {[%clk 0:01:59]}  Nxe5 {[%clk 0:02:12]} 13. dxe5 {[%clk 0:01:59]}  Ng4 {[%clk 0:02:12]} 14. Bf4 {[%clk 0:01:42]}  Bc5 {[%clk 0:02:11]} 15. Rd2 {[%clk 0:01:37]}  g5 {[%clk 0:02:08]} 16. Nd1 {[%clk 0:00:43]}  gxf4 {[%clk 0:02:06]} 17. h3 {[%clk 0:00:42]}  Nxf2 {[%clk 0:02:03]} 18. Nxf2 {[%clk 0:00:39]}  fxg3 {[%clk 0:02:03]} 19. Rad1 {[%clk 0:00:38]}  gxf2+ {[%clk 0:01:59]} 20. Kf1 {[%clk 0:00:36]}  Qg5 {[%clk 0:01:53]} 21. Rxd7 {[%clk 0:00:37]}  Qxe5 {[%clk 0:01:52]} 22. Qe2 {[%clk 0:00:35]}  Qh2 {[%clk 0:01:41]} 23. Qg4+ {[%clk 0:00:32]}  Kh8 {[%clk 0:01:41]} 24. Qf3 {[%clk 0:00:27]}  f5 {[%clk 0:01:34]} 25. Rxh7+ {[%clk 0:00:17]}  Kg8 {[%clk 0:01:22]} 26. Rh8+ {[%clk 0:00:18]}  Kxh8 {[%clk 0:01:11]} 27. Qh5+ {[%clk 0:00:18]}  Kg7 {[%clk 0:01:11]} 28. Qg5+ {[%clk 0:00:13]}  Kf7 {[%clk 0:01:09]} 29. Qh5+ {[%clk 0:00:11]}  Ke7 {[%clk 0:01:05]} 30. Qh4+ {[%clk 0:00:11]}  Ke8 {[%clk 0:00:58]} 31. Qh5+ {[%clk 0:00:11]}  Rf7 {[%clk 0:00:58]} 32. exf5 {[%clk 0:00:07]}  Qg1+ {[%clk 0:00:57]} 33. Ke2 {[%clk 0:00:08]}  f1=Q+ {[%clk 0:00:51]} 34. Bxf1 {[%clk 0:00:07]}  Qe3# {[%clk 0:00:51]} 0-1


[Site "https://www.chess.com"]

[Event "Titled Tuesday Blitz August 22 Late 2023"]
[White "Loay, Sameer"]
[Black "Diaz Perez, Michel Alejandro"]
[WhiteFideId "8104239"]
[BlackFideId "3517179"]
[WhiteElo "2544"]
[BlackElo "2686"]
[Result "0-1"]
[Round "11"]
[TimeControl "180+1"]
[Date "2023.08.22"]
[WhiteClock "0:00:08"]
[BlackClock "0:01:08"]
[Board "36"]

1. Nf3 {[%clk 0:03:00]}  Nf6 {[%clk 0:02:59]} 2. g3 {[%clk 0:03:01]}  b6 {[%clk 0:02:58]} 3. Bg2 {[%clk 0:03:01]}  Bb7 {[%clk 0:02:59]} 4. O-O {[%clk 0:03:01]}  d6 {[%clk 0:02:59]} 5. d3 {[%clk 0:03:02]}  Nbd7 {[%clk 0:03:00]} 6. e4 {[%clk 0:03:03]}  e5 {[%clk 0:02:58]} 7. Re1 {[%clk 0:03:02]}  Be7 {[%clk 0:02:58]} 8. c3 {[%clk 0:03:03]}  c5 {[%clk 0:02:58]} 9. Nbd2 {[%clk 0:03:03]}  O-O {[%clk 0:02:58]} 10. d4 {[%clk 0:03:03]}  Re8 {[%clk 0:02:54]} 11. d5 {[%clk 0:03:03]}  Bf8 {[%clk 0:02:55]} 12. a4 {[%clk 0:03:00]}  a6 {[%clk 0:02:55]} 13. b4 {[%clk 0:02:54]}  Qc7 {[%clk 0:02:52]} 14. Bb2 {[%clk 0:02:54]}  g6 {[%clk 0:02:50]} 15. Bf1 {[%clk 0:02:49]}  h5 {[%clk 0:02:45]} 16. Nc4 {[%clk 0:02:49]}  Nh7 {[%clk 0:02:35]} 17. Ne3 {[%clk 0:02:44]}  Bh6 {[%clk 0:02:33]} 18. b5 {[%clk 0:02:22]}  a5 {[%clk 0:02:20]} 19. c4 {[%clk 0:02:23]}  Ndf6 {[%clk 0:02:18]} 20. Ng2 {[%clk 0:02:22]}  Kg7 {[%clk 0:02:15]} 21. Ngh4 {[%clk 0:02:20]}  Ng8 {[%clk 0:02:13]} 22. Bh3 {[%clk 0:02:19]}  Rf8 {[%clk 0:02:07]} 23. Bc1 {[%clk 0:02:18]}  Bc8 {[%clk 0:02:06]} 24. Bxc8 {[%clk 0:02:16]}  Qxc8 {[%clk 0:02:06]} 25. Kg2 {[%clk 0:02:15]}  Qd7 {[%clk 0:02:04]} 26. Bxh6+ {[%clk 0:02:10]}  Nxh6 {[%clk 0:02:04]} 27. Qd2 {[%clk 0:02:11]}  f5 {[%clk 0:02:01]} 28. Ng5 {[%clk 0:02:11]}  Nxg5 {[%clk 0:01:43]} 29. Qxg5 {[%clk 0:02:12]}  Rf6 {[%clk 0:01:40]} 30. exf5 {[%clk 0:00:58]}  Nxf5 {[%clk 0:01:40]} 31. Nf3 {[%clk 0:00:58]}  Raf8 {[%clk 0:01:38]} 32. Nd2 {[%clk 0:00:59]}  Nd4 {[%clk 0:01:36]} 33. Ne4 {[%clk 0:00:59]}  Rf5 {[%clk 0:01:36]} 34. Qe3 {[%clk 0:00:55]}  h4 {[%clk 0:01:31]} 35. Ng5 {[%clk 0:00:39]}  Rxf2+ {[%clk 0:01:26]} 36. Kg1 {[%clk 0:00:34]}  Qg4 {[%clk 0:01:19]} 37. Rad1 {[%clk 0:00:15]}  R2f5 {[%clk 0:01:12]} 38. Ne6+ {[%clk 0:00:11]}  Nxe6 {[%clk 0:01:12]} 39. dxe6 {[%clk 0:00:12]}  Rf3 {[%clk 0:01:09]} 40. Qe4 {[%clk 0:00:10]}  Rf1+ {[%clk 0:01:09]} 41. Kg2 {[%clk 0:00:10]}  Qxe4+ {[%clk 0:01:08]} 42. Rxe4 {[%clk 0:00:08]}  Rxd1 {[%clk 0:01:08]} 0-1


[Site "https://www.chess.com"]

[Event "Titled Tuesday Blitz August 22 Late 2023"]
[White "Kaplan, Avi Harrison"]
[Black "Mamedov, Edgar"]
[WhiteFideId "30934559"]
[BlackFideId "13739980"]
[WhiteElo "2525"]
[BlackElo "2677"]
[Result "0-1"]
[Round "11"]
[TimeControl "180+1"]
[Date "2023.08.22"]
[WhiteClock "0:00:01"]
[BlackClock "0:00:28"]
[Board "37"]

1. g3 {[%clk 0:02:56]}  d5 {[%clk 0:02:59]} 2. Bg2 {[%clk 0:02:56]}  c6 {[%clk 0:02:58]} 3. Nf3 {[%clk 0:02:56]}  Bg4 {[%clk 0:02:55]} 4. O-O {[%clk 0:02:57]}  Nd7 {[%clk 0:02:55]} 5. c4 {[%clk 0:02:57]}  Bxf3 {[%clk 0:02:54]} 6. Bxf3 {[%clk 0:02:55]}  Ne5 {[%clk 0:02:49]} 7. Qb3 {[%clk 0:02:42]}  Nxf3+ {[%clk 0:02:40]} 8. exf3 {[%clk 0:02:26]}  Qd7 {[%clk 0:02:33]} 9. cxd5 {[%clk 0:02:21]}  cxd5 {[%clk 0:02:32]} 10. d4 {[%clk 0:02:20]}  e6 {[%clk 0:02:31]} 11. Nc3 {[%clk 0:02:21]}  Nf6 {[%clk 0:02:30]} 12. Bf4 {[%clk 0:01:46]}  Be7 {[%clk 0:02:24]} 13. Rac1 {[%clk 0:01:45]}  O-O {[%clk 0:02:22]} 14. Na4 {[%clk 0:01:45]}  Rfc8 {[%clk 0:02:15]} 15. Nc5 {[%clk 0:01:45]}  Bxc5 {[%clk 0:02:14]} 16. dxc5 {[%clk 0:01:45]}  a5 {[%clk 0:02:09]} 17. a4 {[%clk 0:01:24]}  Qc6 {[%clk 0:02:06]} 18. Qb5 {[%clk 0:01:23]}  Nd7 {[%clk 0:02:00]} 19. Be3 {[%clk 0:01:06]}  Ne5 {[%clk 0:01:53]} 20. f4 {[%clk 0:01:01]}  Nc4 {[%clk 0:01:48]} 21. b3 {[%clk 0:00:48]}  Qxb5 {[%clk 0:01:23]} 22. axb5 {[%clk 0:00:44]}  Na3 {[%clk 0:01:23]} 23. c6 {[%clk 0:00:42]}  b6 {[%clk 0:01:21]} 24. Bxb6 {[%clk 0:00:39]}  Nxb5 {[%clk 0:01:20]} 25. Rc5 {[%clk 0:00:39]}  Nd4 {[%clk 0:01:19]} 26. Rxa5 {[%clk 0:00:15]}  Rxa5 {[%clk 0:01:17]} 27. Bxa5 {[%clk 0:00:15]}  Nxb3 {[%clk 0:01:13]} 28. Bb4 {[%clk 0:00:04]}  Nd4 {[%clk 0:01:09]} 29. Rb1 {[%clk 0:00:05]}  Nxc6 {[%clk 0:01:06]} 30. Rc1 {[%clk 0:00:05]}  f6 {[%clk 0:01:01]} 31. Bd6 {[%clk 0:00:04]}  Kf7 {[%clk 0:01:00]} 32. Rb1 {[%clk 0:00:03]}  Rd8 {[%clk 0:00:57]} 33. Rb7+ {[%clk 0:00:03]}  Ke8 {[%clk 0:00:55]} 34. Bc5 {[%clk 0:00:02]}  Rd7 {[%clk 0:00:55]} 35. Rb6 {[%clk 0:00:03]}  Rc7 {[%clk 0:00:54]} 36. Bd6 {[%clk 0:00:03]}  Rc8 {[%clk 0:00:50]} 37. Rb7 {[%clk 0:00:03]}  Rd8 {[%clk 0:00:33]} 38. Bc5 {[%clk 0:00:04]}  Rd7 {[%clk 0:00:33]} 39. Rb6 {[%clk 0:00:04]}  Nd8 {[%clk 0:00:33]} 40. Kg2 {[%clk 0:00:03]}  Rb7 {[%clk 0:00:33]} 41. Ra6 {[%clk 0:00:01]}  Kd7 {[%clk 0:00:32]} 42. Bd4 {[%clk 0:00:01]}  Nc6 {[%clk 0:00:32]} 43. Be3 {[%clk 0:00:02]}  d4 {[%clk 0:00:31]} 44. Bd2 {[%clk 0:00:03]}  Kd6 {[%clk 0:00:31]} 45. Bb4+ {[%clk 0:00:02]}  Rxb4 {[%clk 0:00:31]} 46. Ra8 {[%clk 0:00:01]}  d3 {[%clk 0:00:29]} 47. Ra1 {[%clk 0:00:02]}  d2 {[%clk 0:00:29]} 48. Rd1 {[%clk 0:00:03]}  Rd4 {[%clk 0:00:29]} 49. Kf3 {[%clk 0:00:04]}  Kd5 {[%clk 0:00:29]} 50. Ke3 {[%clk 0:00:04]}  e5 {[%clk 0:00:30]} 51. fxe5 {[%clk 0:00:05]}  Nxe5 {[%clk 0:00:30]} 52. f4 {[%clk 0:00:03]}  Nc4+ {[%clk 0:00:30]} 53. Ke2 {[%clk 0:00:04]}  Ke4 {[%clk 0:00:30]} 54. h3 {[%clk 0:00:03]}  f5 {[%clk 0:00:30]} 55. h4 {[%clk 0:00:03]}  h5 {[%clk 0:00:30]} 56. Kf2 {[%clk 0:00:02]}  Ne3 {[%clk 0:00:29]} 57. Rg1 {[%clk 0:00:01]}  d1=Q {[%clk 0:00:29]} 58. g4 {[%clk 0:00:02]}  Qf3+ {[%clk 0:00:28]} 59. Ke1 {[%clk 0:00:01]}  Nc2# {[%clk 0:00:28]} 0-1


[Site "https://www.chess.com"]